fUSD/lending_fUSD_20260620
["ID","MTS","AMOUNT","RATE_DAILY","PERIOD"]
[425812315,1781928646000,-151.0,0.0003279,30]
[425812347,1781928646000,-384.78176723,0.0003279,30]
[425812337,1781928646000,-155.41295787,0.0003279,30]
[425812349,1781928646000,-152.90634065,0.0003279,30]
[425812335,1781928646000,-151.0,0.0003279,30]
[425812336,1781928646000,-500.0,0.0003279,30]
[425812316,1781928646000,-1000.0,0.0003279,30]
[425812323,1781928646000,-152.0,0.0003279,30]
[425812319,1781928646000,-384.78176723,0.0003279,30]
[425812318,1781928646000,-6222.0,0.0003279,30]
[425812322,1781928646000,-537.6845,0.0003279,30]
[425812320,1781928646000,-151.0,0.0003279,30]
[425812324,1781928646000,-500.0,0.0003279,30]
[425812327,1781928646000,-181.08010149,0.0003279,30]
[425812321,1781928646000,-155.41295787,0.0003279,30]
[425812330,1781928646000,-542.68886294,0.0003279,30]
[425812334,1781928646000,-1000.0,0.0003279,30]
[425812328,1781928646000,-520.0,0.0003279,30]
[425812326,1781928646000,-158.45469157,0.0003279,30]
[425812329,1781928646000,-168.3888056,0.0003279,30]
[425812325,1781928646000,-402.88228263,0.0003279,30]
[425812332,1781928646000,-151.0,0.0003279,30]
[425812333,1781928646000,-151.0,0.0003279,30]
[425812331,1781928646000,-2796.70207546,0.0003279,30]
[425812416,1781928647000,-187.78006524,0.0003279,30]
[425812427,1781928647000,-599.60298507,0.0003279,30]
[425812426,1781928647000,-168.3888056,0.0003279,30]
[425812423,1781928647000,-152.90634065,0.0003279,30]
[425812419,1781928647000,-151.0,0.0003279,30]
[425812421,1781928647000,-500.0,0.0003279,30]
[425812420,1781928647000,-7965.41053267,0.0003279,30]
[425812424,1781928647000,-402.88228263,0.0003279,30]
[425812415,1781928647000,-542.68886294,0.0003279,30]
[425812429,1781928647000,-151.0,0.0003279,30]
[425812422,1781928647000,-579.88197956,0.0003279,30]
[425812428,1781928647000,-1086.54786948,0.0003279,30]
[425812443,1781928647000,-152.0,0.0003279,30]
[425812425,1781928647000,-152.0,0.0003279,30]
[425812435,1781928647000,-402.88228263,0.0003279,30]
[425812434,1781928647000,-151.0,0.0003279,30]
[425812433,1781928647000,-174.61919141,0.0003279,30]
[425812432,1781928647000,-174.61919141,0.0003279,30]
[425812431,1781928647000,-542.68886294,0.0003279,30]
[425812436,1781928647000,-194.72792766,0.0003279,30]
[425812438,1781928647000,-152.90634065,0.0003279,30]
[425812442,1781928647000,-500.0,0.0003279,30]
[425812441,1781928647000,-384.78176723,0.0003279,30]
[425812418,1781928647000,-151.0,0.0003279,30]
[425812430,1781928647000,-1000.0,0.0003279,30]
[425812417,1781928647000,-500.0,0.0003279,30]
[425812394,1781928647000,-402.88228263,0.0003279,30]
[425812408,1781928647000,-162.380719,0.0003279,30]
[425812390,1781928647000,-250.0,0.0003279,30]
[425812389,1781928647000,-152.90634065,0.0003279,30]
[425812391,1781928647000,-151.0,0.0003279,30]
[425812392,1781928647000,-557.5788265,0.0003279,30]
[425812393,1781928647000,-1000.0,0.0003279,30]
[425812437,1781928647000,-8260.13072238,0.0003279,30]
[425812401,1781928647000,-151.0,0.0003279,30]
[425812400,1781928647000,-542.68886294,0.0003279,30]
[425812396,1781928647000,-156.587,0.0003279,30]
[425812397,1781928647000,-500.0,0.0003279,30]
[425812395,1781928647000,-160.0,0.0003279,30]
[425812414,1781928647000,-168.3888056,0.0003279,30]
[425812399,1781928647000,-1000.0,0.0003279,30]
[425812403,1781928647000,-151.0,0.0003279,30]
[425812413,1781928647000,-537.6845,0.0003279,30]
[425812406,1781928647000,-195.48446559,0.0003279,30]
[425812402,1781928647000,-7681.20591386,0.0003279,30]
[425812405,1781928647000,-402.88228263,0.0003279,30]
[425812404,1781928647000,-152.90634065,0.0003279,30]
[425812412,1781928647000,-168.3888056,0.0003279,30]
[425812411,1781928647000,-384.78176723,0.0003279,30]
[425812410,1781928647000,-1000.0,0.0003279,30]
[425812407,1781928647000,-151.0,0.0003279,30]
[425812409,1781928647000,-578.20924308,0.0003279,30]
[425812398,1781928647000,-559.19188,0.0003279,30]
[425812446,1781928647000,-601.3376128,0.0003279,30]
[425812444,1781928647000,-542.68886294,0.0003279,30]
[425812439,1781928647000,-621.78829552,0.0003279,30]
[425812472,1781928647000,-151.0,0.0003279,30]
[425812474,1781928647000,-187.78006524,0.0003279,30]
[425812478,1781928647000,-402.88228263,0.0003279,30]
[425812489,1781928647000,-402.88228263,0.0003279,30]
[425812488,1781928647000,-500.0,0.0003279,30]
[425812486,1781928647000,-384.78176723,0.0003279,30]
[425812487,1781928647000,-542.68886294,0.0003279,30]
[425812480,1781928647000,-8372.26950849,0.0003279,30]
[425812482,1781928647000,-151.0,0.0003279,30]
[425812485,1781928647000,-578.20924308,0.0003279,30]
[425812481,1781928647000,-152.90634069,0.0003279,30]
[425812483,1781928647000,-152.0,0.0003279,30]
[425812477,1781928647000,-151.0,0.0003279,30]
[425812479,1781928647000,-1000.0,0.0003279,30]
[425812484,1781928647000,-194.72792766,0.0003279,30]
[425812490,1781928647000,-151.0,0.0003279,30]
[425812491,1781928647000,-151.0,0.0003279,30]
[425812494,1781928647000,-500.0,0.0003279,30]
[425812497,1781928647000,-201.93286098,0.0003279,30]
[425812499,1781928647000,-542.68886294,0.0003279,30]
[425812495,1781928647000,-194.72792766,0.0003279,30]
[425812447,1781928647000,-151.0,0.0003279,30]
[425812493,1781928647000,-174.61919141,0.0003279,30]
[425812492,1781928647000,-151.0,0.0003279,30]
[425812496,1781928647000,-194.72792766,0.0003279,30]
[425812475,1781928647000,-542.68886294,0.0003279,30]
[425812473,1781928647000,-623.58710447,0.0003279,30]
[425812498,1781928647000,-646.65982734,0.0003279,30]
[425812469,1781928647000,-187.78006524,0.0003279,30]
[425812440,1781928647000,-174.61919141,0.0003279,30]
[425812449,1781928647000,-151.0,0.0003279,30]
[425812452,1781928647000,-181.08010149,0.0003279,30]
[425812450,1781928647000,-8565.75555911,0.0003279,30]
[425812448,1781928647000,-402.88228263,0.0003279,30]
[425812451,1781928647000,-1000.0,0.0003279,30]
[425812445,1781928647000,-500.0,0.0003279,30]
[425812455,1781928647000,-181.08010149,0.0003279,30]
[425812454,1781928647000,-181.08010149,0.0003279,30]
[425812456,1781928647000,-151.0,0.0003279,30]
[425812459,1781928647000,-152.90634065,0.0003279,30]
[425812457,1781928647000,-201.93286098,0.0003279,30]
[425812453,1781928647000,-644.79446245,0.0003279,30]
[425812458,1781928647000,-542.68886294,0.0003279,30]
[425812462,1781928647000,-402.88228263,0.0003279,30]
[425812467,1781928647000,-151.0,0.0003279,30]
[425812476,1781928647000,-187.78006524,0.0003279,30]
[425812466,1781928647000,-500.0,0.0003279,30]
[425812470,1781928647000,-168.3888056,0.0003279,30]
[425812468,1781928647000,-673.89048806,0.0003279,30]
[425812461,1781928647000,-151.0,0.0003279,30]
[425812460,1781928647000,-557.5788265,0.0003279,30]
[425812463,1781928647000,-152.0,0.0003279,30]
[425812464,1781928647000,-384.78176723,0.0003279,30]
[425812465,1781928647000,-8882.6885148,0.0003279,30]
[425812471,1781928647000,-500.0,0.0003279,30]
[425812527,1781928648000,-209.40437684,0.0003279,30]
[425812529,1781928648000,-500.0,0.0003279,30]
[425812525,1781928648000,-151.0,0.0003279,30]
[425812528,1781928648000,-384.78176723,0.0003279,30]
[425812530,1781928648000,-500.0,0.0003279,30]
[425812531,1781928648000,-225.18697532,0.0003279,30]
[425812535,1781928648000,-695.39793187,0.0003279,30]
[425812534,1781928648000,-402.88228275,0.0003279,30]
[425812533,1781928648000,-151.0,0.0003279,30]
[425812532,1781928648000,-152.0,0.0003279,30]
[425812543,1781928648000,-151.0,0.0003279,30]
[425812540,1781928648000,-187.78006524,0.0003279,30]
[425812538,1781928648000,-151.0,0.0003279,30]
[425812545,1781928648000,-644.79446245,0.0003279,30]
[425812547,1781928648000,-152.0,0.0003279,30]
[425812539,1781928648000,-233.5188934,0.0003279,30]
[425812537,1781928648000,-1000.0,0.0003279,30]
[425812546,1781928648000,-500.0,0.0003279,30]
[425812541,1781928648000,-217.15233878,0.0003279,30]
[425812542,1781928648000,-151.0,0.0003279,30]
[425812526,1781928648000,-621.78829552,0.0003279,30]
[425812536,1781928648000,-151.0,0.0003279,30]
[425812524,1781928648000,-151.0,0.0003279,30]
[425812507,1781928648000,-384.78176723,0.0003279,30]
[425812522,1781928648000,-402.88228263,0.0003279,30]
[425812544,1781928648000,-384.78176723,0.0003279,30]
[425812500,1781928648000,-402.88228263,0.0003279,30]
[425812501,1781928648000,-1000.0,0.0003279,30]
[425812502,1781928648000,-152.0,0.0003279,30]
[425812513,1781928648000,-500.0,0.0003279,30]
[425812504,1781928648000,-151.0,0.0003279,30]
[425812503,1781928648000,-151.0,0.0003279,30]
[425812505,1781928648000,-599.60298507,0.0003279,30]
[425812508,1781928648000,-209.40437684,0.0003279,30]
[425812506,1781928648000,-151.0,0.0003279,30]
[425812523,1781928648000,-151.0,0.0003279,30]
[425812512,1781928648000,-204.14380155,0.0003279,30]
[425812511,1781928648000,-402.88228263,0.0003279,30]
[425812509,1781928648000,-181.08010149,0.0003279,30]
[425812516,1781928648000,-151.0,0.0003279,30]
[425812514,1781928648000,-201.93286098,0.0003279,30]
[425812515,1781928648000,-542.68886312,0.0003279,30]
[425812521,1781928648000,-217.15233878,0.0003279,30]
[425812517,1781928648000,-151.0,0.0003279,30]
[425812518,1781928648000,-670.58624095,0.0003279,30]
[425812519,1781928648000,-152.0,0.0003279,30]
[425812520,1781928648000,-1000.0,0.0003279,30]
[425812510,1781928648000,-500.0,0.0003279,30]
[425812549,1781928648000,-242.15909246,0.0003279,30]
[425812562,1781928648000,-151.0,0.0003279,30]
[425812550,1781928648000,-151.0,0.0003279,30]
[425812576,1781928648000,-747.80937859,0.0003279,30]
[425812580,1781928648000,-384.78176723,0.0003279,30]
[425812578,1781928648000,-152.0,0.0003279,30]
[425812579,1781928648000,-280.03725111,0.0003279,30]
[425812581,1781928648000,-151.0,0.0003279,30]
[425812577,1781928648000,-1000.0,0.0003279,30]
[425812584,1781928648000,-290.3986294,0.0003279,30]
[425812588,1781928648000,-151.0,0.0003279,30]
[425812587,1781928648000,-152.0,0.0003279,30]
[425812585,1781928648000,-500.0,0.0003279,30]
[425812575,1781928648000,-151.0,0.0003279,30]
[425812592,1781928648000,-151.0,0.0003279,30]
[425812590,1781928648000,-775.4783256,0.0003279,30]
[425812591,1781928648000,-301.14337869,0.0003279,30]
[425812593,1781928648000,-384.78176723,0.0003279,30]
[425812594,1781928648000,-151.0,0.0003279,30]
[425812598,1781928648000,-1000.0,0.0003279,30]
[425812596,1781928648000,-500.0,0.0003279,30]
[425812595,1781928648000,-152.0,0.0003279,30]
[425812599,1781928648000,-151.0,0.0003279,30]
[425812597,1781928648000,-745.65223615,0.0003279,30]
[425812548,1781928648000,-500.0,0.0003279,30]
[425812589,1781928648000,-1000.0,0.0003279,30]
[425812573,1781928648000,-151.0,0.0003279,30]
[425812586,1781928648000,-719.04747942,0.0003279,30]
[425812582,1781928648000,-500.0,0.0003279,30]
[425812574,1781928648000,-319.16129845,0.0003279,30]
[425812551,1781928648000,-721.12765534,0.0003279,30]
[425812553,1781928648000,-1000.0,0.0003279,30]
[425812557,1781928648000,-152.0,0.0003279,30]
[425812554,1781928648000,-194.72792766,0.0003279,30]
[425812555,1781928648000,-225.18697532,0.0003279,30]
[425812556,1781928648000,-251.11897888,0.0003279,30]
[425812563,1781928648000,-260.4103811,0.0003279,30]
[425812564,1781928648000,-233.5188934,0.0003279,30]
[425812559,1781928648000,-500.0,0.0003279,30]
[425812567,1781928648000,-384.78176723,0.0003279,30]
[425812558,1781928648000,-151.0,0.0003279,30]
[425812583,1781928648000,-151.0,0.0003279,30]
[425812561,1781928648000,-151.0,0.0003279,30]
[425812571,1781928648000,-500.0,0.0003279,30]
[425812572,1781928648000,-693.39197629,0.0003279,30]
[425812569,1781928648000,-151.0,0.0003279,30]
[425812570,1781928648000,-500.0,0.0003279,30]
[425812552,1781928648000,-151.0,0.0003279,30]
[425812560,1781928648000,-668.65185756,0.0003279,30]
[425812566,1781928648000,-152.0,0.0003279,30]
[425812565,1781928648000,-203.11391667,0.0003279,30]
[425812568,1781928648000,-270.0455652,0.0003279,30]
[425812635,1781928649000,-929.95823778,0.0003279,30]
[425812632,1781928649000,-831.51979762,0.0003279,30]
[425812628,1781928649000,-896.77747134,0.0003279,30]
[425812624,1781928649000,-801.85129954,0.0003279,30]
[425812630,1781928649000,-151.0,0.0003279,30]
[425812631,1781928649000,-500.0,0.0003279,30]
[425812634,1781928649000,-151.0,0.0003279,30]
[425812633,1781928649000,-500.0,0.0003279,30]
[425812640,1781928649000,-500.0,0.0003279,30]
[425812626,1781928649000,-151.0,0.0003279,30]
[425812649,1781928649000,-500.0,0.0003279,30]
[425812636,1781928649000,-384.78176723,0.0003279,30]
[425812638,1781928649000,-151.0,0.0003279,30]
[425812637,1781928649000,-500.0,0.0003279,30]
[425812642,1781928649000,-964.36669258,0.0003279,30]
[425812641,1781928649000,-151.0,0.0003279,30]
[425812645,1781928649000,-151.0,0.0003279,30]
[425812643,1781928649000,-384.78176723,0.0003279,30]
[425812647,1781928649000,-1000.04826021,0.0003279,30]
[425812644,1781928649000,-500.0,0.0003279,30]
[425812627,1781928649000,-1055.70635562,0.0003279,30]
[425812639,1781928649000,-862.28603014,0.0003279,30]
[425812629,1781928649000,-384.78176723,0.0003279,30]
[425812600,1781928649000,-500.0,0.0003279,30]
[425812623,1781928649000,-151.0,0.0003279,30]
[425812646,1781928649000,-151.0,0.0003279,30]
[425812601,1781928649000,-804.17102365,0.0003279,30]
[425812604,1781928649000,-152.0,0.0003279,30]
[425812602,1781928649000,-151.0,0.0003279,30]
[425812605,1781928649000,-151.0,0.0003279,30]
[425812606,1781928649000,-500.0,0.0003279,30]
[425812603,1781928649000,-384.78176723,0.0003279,30]
[425812611,1781928649000,-833.92535152,0.0003279,30]
[425812610,1781928649000,-151.0,0.0003279,30]
[425812608,1781928649000,-151.0,0.0003279,30]
[425812607,1781928649000,-773.24136889,0.0003279,30]
[425812609,1781928649000,-1000.0,0.0003279,30]
[425812613,1781928649000,-151.0,0.0003279,30]
[425812616,1781928649000,-151.0,0.0003279,30]
[425812617,1781928649000,-1000.0,0.0003279,30]
[425812615,1781928649000,-500.0,0.0003279,30]
[425812614,1781928649000,-500.0,0.0003279,30]
[425812612,1781928649000,-384.78176723,0.0003279,30]
[425812621,1781928649000,-151.0,0.0003279,30]
[425812622,1781928649000,-500.0,0.0003279,30]
[425812619,1781928649000,-152.0,0.0003279,30]
[425812618,1781928649000,-864.78058953,0.0003279,30]
[425812620,1781928649000,-384.78176723,0.0003279,30]
[425812625,1781928649000,-500.0,0.0003279,30]
[425812650,1781928649000,-500.0,0.0003279,30]
[425812661,1781928649000,-997.16350561,0.0003279,30]
[425812652,1781928649000,-151.0,0.0003279,30]
[425812674,1781928649000,-200.0,0.0003279,30]
[425812678,1781928649000,-151.0,0.0003279,30]
[425812680,1781928649000,-151.0,0.0003279,30]
[425812684,1781928649000,-200.0,0.0003279,30]
[425812687,1781928649000,-286.78306349,0.0003279,30]
[425812686,1781928649000,-200.0,0.0003279,30]
[425812682,1781928649000,-200.0,0.0003279,30]
[425812688,1781928649000,-417.06247972,0.0003279,30]
[425812689,1781928649000,-417.06247972,0.0003279,30]
[425812683,1781928649000,-153.14864244,0.0003279,30]
[425812681,1781928649000,-151.0,0.0003279,30]
[425812648,1781928649000,-894.19061325,0.0003279,30]
[425812691,1781928649000,-417.06247972,0.0003279,30]
[425812692,1781928649000,-417.06247972,0.0003279,30]
[425812690,1781928649000,-417.06247972,0.0003279,30]
[425812695,1781928649000,-417.06247972,0.0003279,30]
[425812694,1781928649000,-417.06247972,0.0003279,30]
[425812696,1781928649000,-417.06247972,0.0003279,30]
[425812697,1781928649000,-417.06247972,0.0003279,30]
[425812699,1781928649000,-417.06247972,0.0003279,30]
[425812700,1781928649000,-417.06247972,0.0003279,30]
[425812698,1781928649000,-417.06247972,0.0003279,30]
[425812685,1781928649000,-200.0,0.0003279,30]
[425812677,1781928649000,-151.0,0.0003279,30]
[425812693,1781928649000,-417.06247972,0.0003279,30]
[425812679,1781928649000,-200.0,0.0003279,30]
[425812675,1781928649000,-151.0,0.0003279,30]
[425812653,1781928649000,-151.0,0.0003279,30]
[425812654,1781928649000,-927.27566594,0.0003279,30]
[425812651,1781928649000,-384.78176723,0.0003279,30]
[425812655,1781928649000,-1037.05004583,0.0003279,30]
[425812658,1781928649000,-151.0,0.0003279,30]
[425812659,1781928649000,-961.58486558,0.0003279,30]
[425812660,1781928649000,-151.0,0.0003279,30]
[425812657,1781928649000,-151.0,0.0003279,30]
[425812662,1781928649000,-151.0,0.0003279,30]
[425812666,1781928649000,-200.0,0.0003279,30]
[425812656,1781928649000,-500.0,0.0003279,30]
[425812664,1781928649000,-151.0,0.0003279,30]
[425812665,1781928649000,-200.0,0.0003279,30]
[425812670,1781928649000,-151.0,0.0003279,30]
[425812667,1781928649000,-151.0,0.0003279,30]
[425812668,1781928649000,-200.0,0.0003279,30]
[425812669,1781928649000,-151.0,0.0003279,30]
[425812671,1781928649000,-200.0,0.0003279,30]
[425812672,1781928649000,-151.0,0.0003279,30]
[425812673,1781928649000,-151.0,0.0003279,30]
[425812663,1781928649000,-151.0,0.0003279,30]
[425812676,1781928649000,-200.0,0.0003279,30]
[425812739,1781928650000,-573.61,0.00032903,2]
[425812742,1781928650000,-184.95,0.00032904,2]
[425812733,1781928650000,-151.0,0.00032903,2]
[425812732,1781928650000,-151.5,0.00032903,2]
[425812726,1781928650000,-151.0,0.00032877,7]
[425812741,1781928650000,-573.61,0.00032903,2]
[425812731,1781928650000,-151.0,0.00032903,2]
[425812730,1781928650000,-151.0,0.00032902,2]
[425812737,1781928650000,-151.32,0.00032903,2]
[425812734,1781928650000,-151.0,0.00032903,2]
[425812736,1781928650000,-151.0,0.00032903,2]
[425812752,1781928650000,-164.0,0.00032924,30]
[425812740,1781928650000,-185.01,0.00032903,2]
[425812744,1781928650000,-185.19,0.00032904,2]
[425812743,1781928650000,-573.61,0.00032904,2]
[425812745,1781928650000,-573.61,0.00032904,2]
[425812748,1781928650000,-185.19,0.00032905,2]
[425812746,1781928650000,-573.61,0.00032904,2]
[425812747,1781928650000,-573.61,0.00032904,2]
[425812751,1781928650000,-396.1,0.00032911,2]
[425812749,1781928650000,-3605.95,0.00032908,2]
[425812750,1781928650000,-185.05,0.00032911,2]
[425812725,1781928650000,-151.0,0.00032877,7]
[425812738,1781928650000,-573.61,0.00032903,2]
[425812727,1781928650000,-150.0,0.00032877,120]
[425812753,1781928650000,-165.0,0.00032924,30]
[425812719,1781928650000,-200.0,0.00032874,2]
[425812701,1781928650000,-417.06247972,0.0003279,30]
[425812702,1781928650000,-417.06247972,0.0003279,30]
[425812704,1781928650000,-417.06247972,0.0003279,30]
[425812703,1781928650000,-417.06247972,0.0003279,30]
[425812705,1781928650000,-417.06247972,0.0003279,30]
[425812706,1781928650000,-417.06247972,0.0003279,30]
[425812716,1781928650000,-480.0,0.00032841,2]
[425812710,1781928650000,-200.0,0.00032805,2]
[425812709,1781928650000,-543.65815042,0.000328,2]
[425812707,1781928650000,-417.06247982,0.0003279,30]
[425812708,1781928650000,-170.7112702,0.000328,2]
[425812720,1781928650000,-500.0,0.00032876,120]
[425812711,1781928650000,-331.39852415,0.00032816,30]
[425812715,1781928650000,-480.0,0.00032838,2]
[425812713,1781928650000,-1000.0,0.00032832,2]
[425812712,1781928650000,-480.0,0.00032817,2]
[425812718,1781928650000,-480.0,0.0003285,2]
[425812717,1781928650000,-480.0,0.00032842,2]
[425812722,1781928650000,-500.0,0.00032876,120]
[425812724,1781928650000,-1000.0,0.00032877,10]
[425812728,1781928650000,-1866.01,0.00032894,14]
[425812723,1781928650000,-150.0,0.00032876,2]
[425812721,1781928650000,-500.0,0.00032876,120]
[425812729,1781928650000,-358.47308855,0.000329,2]
[425812714,1781928650000,-480.0,0.00032837,2]
[425812756,1781928650000,-159.0,0.00032925,30]
[425812735,1781928650000,-151.0,0.00032903,2]
[425812754,1781928650000,-152.0,0.00032925,30]
[425812781,1781928650000,-150.0,0.00032986,30]
[425812784,1781928650000,-500.0,0.00032999,120]
[425812788,1781928650000,-529.01,0.00032999,7]
[425812786,1781928650000,-500.0,0.00032999,120]
[425812789,1781928650000,-529.01,0.00032999,7]
[425812791,1781928650000,-1000.0,0.00032999,120]
[425812790,1781928650000,-1000.0,0.00032999,120]
[425812794,1781928650000,-150.93131032,0.00032999,120]
[425812795,1781928650000,-2000.0,0.00032999,2]
[425812793,1781928650000,-150.0,0.00032999,120]
[425812792,1781928650000,-1000.0,0.00032999,120]
[425812777,1781928650000,-151.91965983,0.00032986,30]
[425812796,1781928650000,-800.0,0.00033,2]
[425812797,1781928650000,-10544.37,0.00033,2]
[425812798,1781928650000,-21765.34,0.00033,2]
[425812801,1781928650000,-12500.0,0.00033,2]
[425812800,1781928650000,-673.54,0.00033,2]
[425812799,1781928650000,-12499.95,0.00033,2]
[425812802,1781928650000,-19048.69,0.00033,2]
[425812803,1781928650000,-22500.0,0.00033,2]
[425812806,1781928650000,-22500.0,0.00033,2]
[425812804,1781928650000,-12499.96,0.00033,2]
[425812805,1781928650000,-22499.93,0.00033,2]
[425812807,1781928650000,-12499.98,0.00033,2]
[425812787,1781928650000,-529.01,0.00032999,7]
[425812785,1781928650000,-500.0,0.00032999,120]
[425812755,1781928650000,-159.0,0.00032925,30]
[425812782,1781928650000,-14368.0,0.00032986,2]
[425812759,1781928650000,-184.0,0.00032925,30]
[425812764,1781928650000,-250.0,0.00032932,27]
[425812762,1781928650000,-549.0,0.00032926,30]
[425812757,1781928650000,-529.0,0.00032925,30]
[425812761,1781928650000,-178.0,0.00032926,30]
[425812763,1781928650000,-250.0,0.00032932,27]
[425812758,1781928650000,-775.0,0.00032925,30]
[425812766,1781928650000,-357.05,0.00032932,27]
[425812765,1781928650000,-250.0,0.00032932,27]
[425812808,1781928650000,-15000.0,0.00033,2]
[425812768,1781928650000,-529.01,0.00032956,7]
[425812760,1781928650000,-2746.29174856,0.00032925,2]
[425812767,1781928650000,-500.0,0.00032956,120]
[425812772,1781928650000,-150.0,0.00032956,7]
[425812780,1781928650000,-150.00000001,0.00032986,30]
[425812783,1781928650000,-153.30247431,0.00032993,7]
[425812778,1781928650000,-158.81557038,0.00032986,30]
[425812776,1781928650000,-155.51830255,0.00032986,30]
[425812779,1781928650000,-150.0,0.00032986,30]
[425812769,1781928650000,-500.0,0.00032956,7]
[425812771,1781928650000,-495.9855025,0.00032956,7]
[425812775,1781928650000,-500.0,0.00032967,2]
[425812773,1781928650000,-480.0,0.00032958,2]
[425812770,1781928650000,-500.0,0.00032956,7]
[425812774,1781928650000,-163.74489571,0.00032967,2]
[425812824,1781928651000,-12500.0,0.00033,2]
[425812823,1781928651000,-18268.25,0.00033,2]
[425812817,1781928651000,-12500.0,0.00033,2]
[425812822,1781928651000,-9999.97,0.00033,2]
[425812819,1781928651000,-10000.0,0.00033,2]
[425812821,1781928651000,-15000.0,0.00033,2]
[425812816,1781928651000,-15000.0,0.00033,2]
[425812811,1781928651000,-800.0,0.00033,2]
[425812820,1781928651000,-9999.99,0.00033,2]
[425812812,1781928651000,-1999.0,0.00033,30]
[425812814,1781928651000,-22500.0,0.00033,2]
[425812813,1781928651000,-15000.0,0.00033,2]
[425812810,1781928651000,-4958.72,0.00033,2]
[425812809,1781928651000,-1641.2,0.00033,2]
[425812827,1781928651000,-9999.99,0.00033,2]
[425812818,1781928651000,-22500.0,0.00033,2]
[425812815,1781928651000,-22500.0,0.00033,2]
[425812829,1781928651000,-12500.0,0.00033,2]
[425812825,1781928651000,-18500.51,0.00033,2]
[425812826,1781928651000,-12500.0,0.00033,2]
[425812844,1781928651000,-520.55437169,0.00025861,5]
[425812843,1781928651000,-2525.44562831,0.00025861,5]
[425812842,1781928651000,-881.0,0.00025861,5]
[425812841,1781928651000,-593.16615702,0.00033,2]
[425812839,1781928651000,-1623.18,0.00033,2]
[425812837,1781928651000,-15000.0,0.00033,2]
[425812838,1781928651000,-22499.99,0.00033,2]
[425812840,1781928651000,-312032.17103162,0.00033,2]
[425812835,1781928651000,-690.52,0.00033,7]
[425812832,1781928651000,-12499.97,0.00033,2]
[425812836,1781928651000,-200.0,0.00033,2]
[425812831,1781928651000,-15000.0,0.00033,2]
[425812834,1781928651000,-8299.58,0.00033,2]
[425812833,1781928651000,-22500.0,0.00033,2]
[425812830,1781928651000,-22499.99,0.00033,2]
[425812828,1781928651000,-15000.0,0.00033,2]
[425812846,1781928652000,-522.78396786,0.00027326,2]
[425812845,1781928652000,-203.10240215,0.00027326,2]
[425812848,1781928652000,-1156.61628645,0.00027326,2]
[425812847,1781928652000,-1780.13134354,0.00027326,2]
[425812849,1781928652000,-1363.38327512,0.00027397,10]
[425812850,1781928672000,1000.0,0.00028568,120]
[425812851,1781928691000,306.06,0.00028099,120]
[425812852,1781928807000,-397.0,0.00014999,2]
[425812853,1781928821000,-103.0,0.00014999,2]
[425812854,1781928821000,284.537627,0.0002,120]
[425812855,1781928873000,-411.0,0.00014999,2]
[425812858,1781928887000,-89.0,0.00014999,2]
[425812859,1781928939000,-500.0,0.00014998,2]
[425812860,1781928965000,152.0,0.00028989,120]
[425812861,1781928980000,2295.489,0.00030137,120]
[425812862,1781928993000,-465.53207955,0.00014998,2]
[425812863,1781929007000,-34.46792045,0.00014998,2]
[425812864,1781929043000,173.0,0.00030137,120]
[425812865,1781929059000,-368.57020325,0.00014997,2]
[425812866,1781929113000,-312.91652412,0.00014997,2]